fUSD/lending_fUSD_20241004
["ID","MTS","AMOUNT","RATE_DAILY","PERIOD"]
[339824089,1728037838183,-3528.5620193,0.00010995,2]
[339824090,1728037838193,-150.0,0.00010999,2]
[339824091,1728037838202,-336035.8908414,0.00011,2]
[339824092,1728037838214,-73352.9375359,0.00011,2]
[339824093,1728037838224,-447.31008814,0.00011,2]
[339824094,1728037839718,-267.42673683,0.00011,2]
[339824105,1728037839878,-1278.93957639,0.00011,2]
[339824106,1728037839964,-5818.34291614,0.00011,2]
[339824107,1728037840053,-20106.592846,0.00011,2]
[339824108,1728037840065,-415.1,0.00011,2]
[339824121,1728037842999,-130385.72202287,0.00011,2]
[339824122,1728037843011,-714.05707667,0.00011,2]
[339824123,1728037843023,-740.23858598,0.00011,2]
[339824126,1728037845750,-6410.64000001,0.00011,2]
[339824128,1728037993267,868.65,8.493e-05,2]
[339824130,1728038505922,825.21,8.392e-05,2]
[339824131,1728038614231,250.0,0.00010217,2]
[339824132,1728038641352,342.80740549,0.00010208,2]
[339824133,1728038646359,342.80740548,0.00010209,2]
[339824134,1728038651376,342.80740548,0.0001021,2]
[339824135,1728038793872,170.06,0.00010222,2]
[339824136,1728038928969,884.11,0.00010176,2]
[339824137,1728039025347,1000.0,0.00010043,2]
[339824138,1728039025792,250.0,0.00010054,2]
[339824143,1728039031959,-401.52,0.00010247,2]
[339824144,1728039031969,-155.85,0.00010248,2]
[339824145,1728039031978,-228.92632256,0.0001027,2]
[339824146,1728039031989,-247.38367744,0.0001027,2]
[339824147,1728039031999,-306.06,0.0001031,2]
[339824148,1728039032008,-700.0,0.000106,3]
[339824149,1728039032018,-825.21,0.00010656,2]
[339824150,1728039032027,-48.87385005,0.000107,3]
[339824151,1728039032039,-540.9746018,0.000107,3]
[339824152,1728039032050,-633.33,0.000107,3]
[339824153,1728039032073,-276.82154815,0.000107,3]
[339824154,1728039032082,-78.55920027,0.00010779,2]
[339824159,1728039037884,-301.23979973,0.00010779,2]
[339824160,1728039037894,-169.967,0.00010779,2]
[339824161,1728039037903,-2300.0,0.000108,3]
[339824162,1728039037913,-300.0,0.00010898,2]
[339824163,1728039037923,-1000.0,0.00010899,2]
[339824164,1728039037933,-1095.5878,0.00010899,2]
[339824165,1728039037942,-622.01444732,0.000109,2]
[339824166,1728039037952,-3100.0,0.000109,3]
[339824167,1728039037961,-7489.50434385,0.000109,2]
[339824168,1728039037971,-212.43634515,0.000109,2]
[339824169,1728039037980,-204.84357018,0.000109,2]
[339824170,1728039037990,-195.47382231,0.000109,2]
[339824171,1728039037999,-200.0,0.00010959,2]
[339824172,1728039038008,-161.09,0.00010959,2]
[339824173,1728039038018,-250.0,0.00010959,2]
[339824174,1728039038027,-162.15,0.00010959,2]
[339824175,1728039038036,-522.11418492,0.00010973,2]
[339824176,1728039038046,-222.0,0.00010997,2]
[339824177,1728039038056,-150.0,0.00010997,2]
[339824178,1728039038065,-500.0,0.00010998,2]
[339824179,1728039038074,-500.0,0.00010998,2]
[339824180,1728039038083,-415.47585423,0.00010998,2]
[339824181,1728039038093,-500.0,0.00010998,2]
[339824182,1728039038103,-500.0,0.00010998,2]
[339824183,1728039038112,-500.0,0.00010998,2]
[339824184,1728039038122,-500.0,0.00010998,2]
[339824185,1728039038136,-257.43538269,0.00010998,2]
[339824186,1728039038147,-500.0,0.00010998,2]
[339824187,1728039038156,-594.75303007,0.00010998,2]
[339824188,1728039038166,-500.0,0.00010998,2]
[339824189,1728039038175,-17898.0302795,0.00010999,4]
[339824190,1728039038215,-473.48451638,0.00010999,4]
[339824220,1728039073411,785.25,9.487e-05,2]
[339824221,1728039585901,745.98,8.514e-05,2]
[339824222,1728039916615,344.57,0.00010213,2]
[339824223,1728040091630,708.68,8.219e-05,2]
[339824224,1728040185334,250.0,0.00010038,2]
[339824225,1728040230648,9426.03,0.00010057,2]
[339824227,1728040232124,-153.04,0.00010277,2]
[339824228,1728040232133,-200.76,0.00010286,2]
[339824229,1728040232143,-466.23,0.00010312,3]
[339824230,1728040232153,-250.0,0.00010312,2]
[339824231,1728040232164,-1000.0,0.00010371,2]
[339824232,1728040232174,-1861.59809847,0.00010371,2]
[339824233,1728040232305,-3190.57731823,0.00010371,2]
[339824234,1728040232315,-300.0,0.00010428,2]
[339824235,1728040232325,-708.68,0.0001048,2]
[339824236,1728040232334,-400.0,0.000106,3]
[339824237,1728040232343,-800.0,0.000107,3]
[339824238,1728040232352,-913.08,0.000107,2]
[339824239,1728040232362,-499.99,0.000107,2]
[339824240,1728040232379,-303.84,0.00010779,2]
[339824241,1728040232389,-1200.0,0.000108,3]
[339824242,1728040232398,-3944.6896,0.00010899,2]
[339824243,1728040232407,-497.61155784,0.00010899,2]
[339824244,1728040232416,-186.77262578,0.00010899,2]
[339824245,1728040232427,-6297.45400846,0.00010899,2]
[339824257,1728040238210,-256.32727518,0.00010899,2]
[339824258,1728040238220,-185.88180198,0.000109,2]
[339824259,1728040238229,-506.90264493,0.000109,3]
[339824260,1728040238243,-1056.81499998,0.000109,3]
[339824261,1728040238254,-36.28235509,0.000109,3]
[339824262,1728040238263,-195.47382231,0.000109,2]
[339824263,1728040238272,-200.0,0.00010959,2]
[339824264,1728040238281,-163.16,0.00010959,2]
[339824265,1728040238290,-109.2114418,0.00010959,2]
[339824266,1728040238301,-50.4285582,0.00010959,2]
[339824267,1728040238311,-1184.20666524,0.00010959,2]
[339824333,1728040240304,-259.3022208,0.00010959,2]
[339824334,1728040240369,-441.87111396,0.00010959,2]
[339824335,1728040240380,-215.12888604,0.00010959,2]
[339824336,1728040240392,-34.87111396,0.00010959,2]
[339824337,1728040240402,-150.0,0.00010997,2]
[339824338,1728040240411,-2590.1526639,0.00010998,2]
[339824339,1728040240421,-6737.76063272,0.00010998,2]
[339824345,1728040243154,-830.40439571,0.00010998,2]
[339824346,1728040243489,-6254.55830637,0.00010998,2]
[339824347,1728040243499,-245.44169389,0.00010998,2]
[339824348,1728040243512,-1097.21672941,0.00010998,2]
[339824349,1728040243522,-175.10327059,0.00010998,2]
[339824359,1728040246242,-324.89672941,0.00010998,2]
[339824360,1728040246252,-490.83309796,0.00010998,2]
[339824361,1728040246262,-440.85017263,0.00010999,4]
[339824362,1728040246442,-259.99999999,0.00010999,4]
[339824900,1728040632414,677.1,8.787e-05,2]
[339824901,1728041192123,517.0533,0.0001017,2]
[339824902,1728041222140,643.24,8.383e-05,2]
[339824915,1728041432262,-1000.0,0.00010271,2]
[339824917,1728041432272,-262.339934,0.0001028,2]
[339824920,1728041432501,-72.220066,0.0001028,2]
[339824921,1728041432510,-250.0,0.00010301,2]
[339824922,1728041432520,-250.0,0.00010349,2]
[339824923,1728041432530,-200.76,0.00010357,2]
[339824924,1728041432540,-643.24,0.00010647,2]
[339824925,1728041432550,-1701.2647147,0.00010899,2]
[339824926,1728041438246,-2024.15979162,0.00010899,2]
[339824927,1728041438463,-1117.71596049,0.00010899,2]
[339824966,1728041440666,-517.05428338,0.00010899,2]
[339824997,1728041446398,-7987.66813717,0.00010899,2]
[339824998,1728041592767,400.0,0.0001017,2]
[339824999,1728041592787,400.0,0.0001017,2]
[339825000,1728041592807,400.0,0.0001017,2]
[339825001,1728041592827,400.0,0.0001017,2]
[339825002,1728041592847,400.0,0.0001017,2]
[339825003,1728041592867,400.0,0.0001017,2]
[339825004,1728041592887,400.0,0.0001017,2]
[339825005,1728041592907,400.0,0.0001017,2]
[339825006,1728041592927,200.0,0.0001017,2]
[339825007,1728041592951,10404.1055,0.0001017,2]
[339825008,1728041720489,688.71,8.219e-05,2]
[339825009,1728041785365,274.57,0.00010066,2]
[339825010,1728041869464,5818.3,0.00010024,2]
[339825011,1728041882219,160.0,0.0001,2]
[339825012,1728041898862,156.9,0.0001,2]
[339825013,1728042001872,23900.0,9.985e-05,2]
[339825014,1728042093840,250.0,0.00010001,2]
[339825015,1728042120316,418.87,0.00010036,2]
[339825016,1728042126894,250.0,0.00010054,2]
[339825017,1728042168014,169.13,0.00010134,2]
[339825018,1728042181940,298.0,0.00010024,2]
[339825019,1728042191015,695.0,0.00010024,2]
[339825020,1728042246548,728.35,8.219e-05,2]
[339825021,1728042331128,274.57,0.00010106,2]
[339825022,1728042383523,170.92,8.039e-05,2]
[339825023,1728042432437,314.96,0.00010216,2]
[339825029,1728042613642,267.64,0.00010061,2]
[339825034,1728042631459,-173.73,0.0001041,2]
[339825035,1728042631469,-413.47002,0.00010447,2]
[339825036,1728042631577,-586.52998,0.00010447,2]
[339825037,1728042631586,-290.66626056,0.00010479,2]
[339825044,1728042635654,250.0,0.00010108,2]
[339825051,1728042637678,-437.68373944,0.00010479,2]
[339825052,1728042637688,-517.053,0.00010699,2]
[339825053,1728042637698,-300.0,0.00010798,2]
[339825054,1728042637708,-312.592,0.00010799,2]
[339825055,1728042637719,-2061.1445,0.00010799,2]
[339825056,1728042637729,-1364.4004,0.00010799,2]
[339825057,1728042637739,-255.9129,0.00010799,2]
[339825058,1728042637750,-827.350988,0.000108,2]
[339825059,1728042637759,-150.99,0.00010888,2]
[339825060,1728042637772,-228.86,0.00010888,2]
[339825061,1728042637781,-150.0,0.00010888,2]
[339825062,1728042637791,-999.99,0.00010889,2]
[339825063,1728042637803,-276.45,0.00010889,2]
[339825064,1728042637812,-276.45,0.00010889,2]
[339825065,1728042637822,-276.45,0.00010889,2]
[339825066,1728042637832,-276.45,0.00010889,2]
[339825067,1728042637843,-276.45,0.00010889,2]
[339825068,1728042637854,-276.45,0.00010889,2]
[339825069,1728042637864,-276.45,0.00010889,2]
[339825070,1728042637874,-276.45,0.00010889,2]
[339825072,1728042637884,-276.45,0.00010889,2]
[339825074,1728042637894,-276.45,0.00010889,2]
[339825076,1728042637903,-78871.8461,0.00010899,2]
[339825077,1728042637913,-154.9008,0.00010899,2]
[339825078,1728042637923,-1000.0,0.00010899,2]
[339825079,1728042637932,-500.0,0.00010899,2]
[339825080,1728042637941,-70138.8661,0.00010899,2]
[339825081,1728042637951,-42582.0799,0.00010899,2]
[339825082,1728042637961,-894.0289,0.00010899,2]
[339825083,1728042637971,-466.7917,0.00010899,2]
[339825084,1728042637980,-220.60246218,0.00010899,2]
[339825085,1728042637990,-151.0,0.00010899,2]
[339825086,1728042638000,-6525.58863173,0.00010899,2]
[339825087,1728042638009,-172.17090236,0.00010899,2]
[339825088,1728042638019,-153.73177365,0.00010899,2]
[339825089,1728042638028,-182.96334203,0.000109,2]
[339825090,1728042638038,-200.0,0.00010959,2]
[339825091,1728042638048,-162.47,0.00010959,2]
[339825092,1728042638059,-161.09,0.00010959,2]
[339825093,1728042638069,-161.16,0.00010959,2]
[339825094,1728042638081,-155.18,0.00010959,2]
[339825095,1728042638091,-250.0,0.00010959,2]
[339825096,1728042638102,-150.0,0.00010959,2]
[339825097,1728042638112,-207.609945,0.00010959,2]
[339825098,1728042638122,-207.609945,0.00010959,2]
[339825099,1728042638132,-207.609945,0.00010959,2]
[339825100,1728042638142,-207.609945,0.00010959,2]
[339825101,1728042638152,-1508.3,0.00010959,2]
[339825102,1728042638162,-421.33274402,0.00010987,2]
[339825103,1728042638172,-294.2420333,0.00010995,2]
[339825104,1728042638182,-6551.4136656,0.00010995,2]
[339825105,1728042638192,-1468.60590093,0.00010997,2]
[339825106,1728042638201,-207.609945,0.00010997,2]
[339825107,1728042638211,-207.609945,0.00010997,2]
[339825108,1728042638220,-500.0,0.00010998,2]
[339825109,1728042638229,-500.0,0.00010998,2]
[339825110,1728042638239,-347.78045489,0.00010998,2]
[339825111,1728042638249,-500.0,0.00010998,2]
[339825112,1728042638258,-193.58316857,0.00010998,2]
[339825113,1728042638268,-500.0,0.00010998,2]
[339825114,1728042638278,-176.27523577,0.00010998,2]
[339825115,1728042638287,-683.5881383,0.00010998,2]
[339825116,1728042638296,-207.609945,0.00010998,2]
[339825117,1728042638307,-207.609945,0.00010998,2]
[339825118,1728042638316,-465076.70495103,0.00010999,4]
[339825122,1728042639509,-673.33331638,0.00010999,4]
[339825123,1728042639527,-1339.99999945,0.00010999,4]
[339825163,1728042730807,687.49,8.477e-05,2]
[339825164,1728042780394,-150.0,0.00010999,7]
[339825165,1728043069205,2120.87,0.00010218,2]
[339825166,1728043070359,213.83,0.00010218,2]
[339825170,1728043244792,250.0,0.00010189,2]
[339825177,1728043297137,192.92,9.93e-05,2]
[339825185,1728043382576,250.0,0.0001014,2]
[339825190,1728043451104,386.0,8.318e-05,2]
[339825191,1728043451128,267.11,8.318e-05,2]
[339825193,1728043822737,335.09,9.94e-05,2]
[339825196,1728043831539,-365.06759219,0.00010582,2]
[339825197,1728043831551,-288.04240781,0.00010582,2]
[339825198,1728043831561,-183.90852239,0.0001073,2]
[339825199,1728043831594,-791.24822385,0.0001073,2]
[339825200,1728043831648,-24.84325376,0.0001073,2]
[339825201,1728043831658,-150.0,0.00010798,2]
[339825202,1728043831668,-319.76516933,0.00010799,2]
[339825203,1728043831679,-431.36387479,0.00010799,2]
[339825204,1728043831691,-2977.63233919,0.00010799,2]
[339825205,1728043831755,-1151.55012815,0.00010799,2]
[339825206,1728043831767,-1007.07587274,0.00010799,2]
[339825207,1728043831810,-441.93854479,0.00010799,2]
[339825208,1728043837509,-1706.22595138,0.00010799,2]
[339825209,1728043837562,-1070.70831661,0.00010799,2]
[339825210,1728043837573,-3003.94905997,0.00010799,2]
[339825211,1728043837618,-74.64874305,0.00010799,2]
[339825212,1728043837628,-763.66837304,0.00010799,2]
[339825215,1728043837877,-469.56329038,0.00010799,2]
[339825216,1728043837897,-300.0,0.00010799,2]
[339825229,1728043839734,-0.9636002,0.00010799,2]
[339825279,1728043842704,-9972.52913638,0.00010799,2]
[339825280,1728043842714,-924.5111,0.00010799,2]
[339825281,1728043842723,-905.3344,0.00010899,2]
[339825282,1728043842734,-288.067,0.00010899,2]
[339825283,1728043842744,-494.217,0.00010899,2]
[339825284,1728043842754,-6700.77597451,0.00010899,2]
[339825285,1728043842764,-432.4729513,0.000109,2]
[339825286,1728043842774,-7500.0,0.000109,2]
[339825287,1728043842783,-160.09292432,0.000109,2]
[339825288,1728043842793,-4736.81002441,0.000109,2]
[339825289,1728043842803,-492.9996633,0.000109,2]
[339825290,1728043842813,-208.87752846,0.000109,2]
[339825291,1728043842823,-554.0,0.00010919,2]
[339825292,1728043842833,-1906.0,0.00010919,2]
[339825293,1728043842843,-3351.0,0.00010919,2]
[339825294,1728043842853,-808.0,0.00010919,2]
[339825295,1728043842862,-1910.0,0.00010919,2]
[339825296,1728043842872,-1148.0,0.00010919,2]
[339825297,1728043842882,-181.12,0.00010919,2]
[339825298,1728043842892,-12727.199,0.00010919,2]
[339825299,1728043842902,-5867.0,0.00010919,2]
[339825300,1728043842912,-1082.0,0.00010919,2]
[339825301,1728043842922,-200.0,0.00010959,2]
[339825302,1728043842932,-160.28,0.00010959,2]
[339825303,1728043842941,-155.18,0.00010959,2]
[339825304,1728043842951,-250.0,0.00010959,2]
[339825305,1728043842961,-1206.64,0.00010959,2]
[339825306,1728043842971,-162.47,0.00010959,2]
[339825307,1728043842982,-585.29,0.00010959,2]
[339825308,1728043842993,-499.99,0.00010959,2]
[339825309,1728043843003,-501.80015991,0.00010973,2]
[339825310,1728043843013,-500.0,0.00010973,2]
[339825311,1728043843028,-232.84025375,0.00010973,2]
[339825312,1728043843038,-211.99856331,0.00010973,2]
[339825313,1728043843048,-500.0,0.00010973,2]
[339825314,1728043843058,-2390.223666,0.00010992,2]
[339825315,1728043843069,-1466.3583884,0.00010992,2]
[339825316,1728043843080,-1101.45442569,0.00010997,2]
[339825317,1728043843091,-1298.35115898,0.00010999,4]
[339825323,1728044131289,619.79,8.377e-05,2]
[339825324,1728044413152,279.65,0.00010184,2]
[339825325,1728044455346,250.0,0.00010161,2]
[339825326,1728044662638,160.98529675,0.0002,120]
[339825327,1728044714632,150.71179332,9.888e-05,2]
[339825328,1728044714718,622.72,8.289e-05,2]
[339825329,1728044730002,448.1939945,0.000101,2]
[339825332,1728044913478,250.0,0.00010168,2]
[339825343,1728044966534,250.0,9.96e-05,2]
[339825344,1728044978238,324.96,0.00010143,2]
[339825355,1728045031939,-622.72,0.00010553,2]
[339825356,1728045031949,-169.13,0.00010859,2]
[339825357,1728045031960,-300.0,0.00010898,2]
[339825358,1728045031970,-1325.79878082,0.00010899,2]
[339825360,1728045032005,1000.0,0.00010144,2]
[339825379,1728045037801,-1977.62851918,0.00010899,2]
[339825380,1728045037811,-848.1,0.00010899,2]
[339825381,1728045037822,-300.0,0.00010899,2]
[339825382,1728045037832,-493.1894,0.00010899,2]
[339825383,1728045037842,-6858.444583,0.00010899,2]
[339825384,1728045037852,-345.97836104,0.000109,2]
[339825385,1728045037862,-7500.0,0.000109,2]
[339825386,1728045037873,-208.87752844,0.000109,2]
[339825387,1728045037882,-207.18361201,0.000109,2]
[339825388,1728045037893,-685.10372536,0.000109,2]
[339825389,1728045037903,-200.0,0.00010959,2]
[339825390,1728045037912,-334.43,0.00010959,2]
[339825391,1728045037921,-161.38,0.00010959,2]
[339825392,1728045037932,-250.0,0.00010959,2]
[339825393,1728045037941,-965.31,0.00010959,2]
[339825394,1728045037950,-161.1,0.00010959,2]
[339825395,1728045037960,-501.80015991,0.00010973,2]
[339825396,1728045037969,-500.0,0.00010973,2]
[339825397,1728045037978,-1461.43,0.00010973,2]
[339825398,1728045037995,-232.84025375,0.00010973,2]
[339825399,1728045038005,-500.0,0.00010973,2]
[339825400,1728045038014,-211.99856331,0.00010973,2]
[339825401,1728045038024,-395.373,0.00010973,2]
[339825402,1728045038033,-499.99,0.00010973,2]
[339825403,1728045038042,-822.34,0.00010973,2]
[339825404,1728045038052,-190.84835501,0.00010989,2]
[339825405,1728045038061,-522.79243652,0.00010991,2]
[339825406,1728045038070,-23.05872668,0.00010992,2]
[339825407,1728045038559,-8355.461751,0.00010992,2]
[339825408,1728045038574,-798.89466102,0.00010992,2]
[339825409,1728045038584,-2314.1026369,0.00010992,2]
[339825410,1728045038593,-1182.5898108,0.00010992,2]
[339825411,1728045038603,-584.4212324,0.00010992,2]
[339825412,1728045038612,-1285.03016331,0.00010997,2]
[339825413,1728045038621,-288.30589223,0.00010998,2]
[339825414,1728045038631,-31162.68903134,0.00010999,4]
[339825415,1728045038654,-3077.09960196,0.00010999,4]
[339825416,1728045039691,-326.9197394,0.00010999,4]
[339825417,1728045039901,-394.16809178,0.00010999,4]
[339825418,1728045039912,-794.06286962,0.00010999,4]
[339825419,1728045039923,-504.39505628,0.00010999,4]
[339825420,1728045039934,-924.225,0.00010999,4]
[339825421,1728045039945,-1235.45870953,0.00010999,4]
[339825422,1728045039967,-1207.804,0.00010999,4]
[339825423,1728045039994,-900.4367016,0.00010999,4]
[339825424,1728045040007,-524455.97671776,0.00010999,4]
[339825425,1728045040016,-2000.0,0.00010999,2]
[339825426,1728045040025,-200.0,0.00010999,2]
[339825427,1728045040034,-2000.0,0.00010999,2]
[339825429,1728045040044,-200.0,0.00010999,2]
[339825431,1728045040053,-150.0,0.00010999,2]
[339825433,1728045040063,-500.0,0.00010999,2]
[339825435,1728045040072,-432.29354808,0.00010999,2]
[339825437,1728045040081,-500.0,0.00010999,2]
[339825439,1728045040091,-552.0,0.00010999,2]
[339825441,1728045040100,-1906.0,0.00010999,2]
[339825443,1728045040109,-3351.0,0.00010999,2]
[339825445,1728045040118,-1910.0,0.00010999,2]
[339825447,1728045040127,-808.0,0.00010999,2]
[339825449,1728045040136,-1082.0,0.00010999,2]
[339825451,1728045040146,-632.854,0.00010999,2]
[339825453,1728045040155,-150.0,0.00010999,2]
[339825455,1728045040164,-1264.0,0.00010999,2]
[339825457,1728045040173,-5867.0,0.00010999,2]
[339825459,1728045040182,-1297.0,0.00010999,2]
[339825461,1728045040192,-453.778,0.00010999,2]
[339825463,1728045040201,-579.0,0.00011,2]
[339825465,1728045040210,-1254913.85381286,0.00011,2]
[339825467,1728045040220,-600.0,0.00011,2]
[339825469,1728045040230,-653316.10864314,0.00011,2]
[339825470,1728045040242,-349993.81863106,0.00011,2]
[339825472,1728045040253,-1125.71236862,0.00011,2]
[339825474,1728045040262,-114586.16045879,0.00011,2]
[339825476,1728045040271,-200.0,0.00011,2]
[339825477,1728045040280,-151.0,0.00011,2]
[339825478,1728045040289,-151.0,0.00011,2]
[339825479,1728045040298,-151.0,0.00011,2]
[339825480,1728045040307,-150.0,0.00011,2]
[339825481,1728045040316,-306.3,0.00011,2]
[339825482,1728045040325,-1012.66,0.00011,2]
[339825483,1728045040334,-319649.88331866,0.00011,2]
[339825484,1728045040343,-151.0,0.00011,2]
[339825485,1728045040352,-151.0,0.00011,2]
[339825486,1728045040362,-151.0,0.00011,2]
[339825487,1728045040371,-151.0,0.00011,2]
[339825488,1728045040380,-151.0,0.00011,2]
[339825489,1728045040389,-151.0,0.00011,2]
[339825490,1728045040399,-151.0,0.00011,2]
[339825491,1728045040408,-151.0,0.00011,2]
[339825492,1728045040417,-288.0,0.0001106,2]
[339825493,1728045040426,-255.0,0.000111,2]
[339825494,1728045040438,-188.0,0.00011108,2]
[339825495,1728045040447,-2000.0,0.00011109,2]
[339825496,1728045040456,-200.0,0.00011109,2]
[339825497,1728045040465,-2000.0,0.00011109,2]
[339825498,1728045040475,-200.0,0.00011109,2]
[339825499,1728045040486,-192.92,0.00011171,2]
[339825500,1728045040497,-335.09,0.00011182,2]
[339825501,1728045040507,-2000.0,0.0001122,2]
[339825502,1728045040516,-200.0,0.0001122,2]
[339825503,1728045040526,-2000.0,0.0001122,2]
[339825504,1728045040535,-200.0,0.0001122,2]
[339825505,1728045040544,-2000.0,0.00011332,2]
[339825506,1728045040554,-200.0,0.00011332,2]
[339825507,1728045040564,-2000.0,0.00011332,2]
[339825508,1728045040574,-200.0,0.00011332,2]
[339825509,1728045040584,-1000.0,0.00011412,2]
[339825510,1728045040595,-2000.0,0.00011446,2]
[339825511,1728045040605,-200.0,0.00011446,2]
[339825512,1728045040616,-2000.0,0.00011446,2]
[339825513,1728045040627,-200.0,0.00011446,2]
[339825514,1728045040638,-279.65,0.00011457,2]
[339825515,1728045040649,-422.53293113,0.00011503,2]
[339825516,1728045040661,-334.43,0.00011507,2]
[339825517,1728045040671,-2751.0,0.00011507,2]
[339825518,1728045040682,-965.31,0.00011507,2]
[339825519,1728045040692,-159.346,0.00011559,2]
[339825520,1728045040702,-159.346,0.00011564,2]
[339825521,1728045040711,-2524.0,0.0001184,2]
[339825522,1728045040721,-150.0,0.0001184,2]
[339825523,1728045040730,-500.0,0.0001184,2]
[339825524,1728045040748,-1490.0,0.0001184,2]
[339825525,1728045040757,-2524.0,0.00011867,2]
[339825526,1728045040767,-200.54820962,0.00011867,2]
[339825527,1728045040779,-500.0,0.00011867,2]
[339825528,1728045040789,-1490.0,0.00011867,2]
[339825529,1728045040798,-2524.0,0.00011895,2]
[339825530,1728045040807,-500.0,0.00011895,2]
[339825531,1728045040817,-1490.0,0.00011895,2]
[339825532,1728045040826,-151.0,0.00011895,2]
[339825533,1728045040835,-151.0,0.00011895,2]
[339825534,1728045040844,-496.02266465,0.000119,2]
[339825535,1728045040853,-2524.0,0.00011922,2]
[339825536,1728045040863,-500.0,0.00011922,2]
[339825537,1728045040872,-1490.0,0.00011922,2]
[339825538,1728045040883,-2524.0,0.0001195,2]
[339825539,1728045040893,-500.0,0.0001195,2]
[339825540,1728045040902,-1490.0,0.0001195,2]
[339825541,1728045040912,-2524.0,0.00011977,2]
[339825542,1728045040921,-1490.0,0.00011977,2]
[339825543,1728045040930,-420.0,0.00011977,2]
[339825544,1728045040940,-151.0,0.00012,2]
[339825545,1728045040949,-6627.58406576,0.00012,2]
[339825546,1728045040959,-2524.0,0.00012004,2]
[339825547,1728045040968,-1490.0,0.00012004,2]
[339825548,1728045040977,-2524.0,0.00012032,2]
[339825549,1728045040991,-1490.0,0.00012032,2]
[339825550,1728045041001,-174.47,0.00012033,2]
[339825551,1728045041010,-334.43,0.00012055,2]
[339825552,1728045041020,-965.31,0.00012055,2]
[339825553,1728045041029,-180.0,0.00012055,2]
[339825554,1728045041038,-2524.0,0.00012059,2]
[339825555,1728045041047,-1490.0,0.00012059,2]
[339825556,1728045041057,-2524.0,0.00012087,2]
[339825557,1728045041066,-1490.0,0.00012087,2]
[339825558,1728045041075,-333.0,0.00012108,2]
[339825559,1728045041086,-2524.0,0.00012114,2]
[339825560,1728045041095,-1490.0,0.00012114,2]
[339825561,1728045041105,-151.0,0.00012114,2]
[339825562,1728045041114,-226.319349,0.00012114,2]
[339825563,1728045041123,-2524.0,0.00012141,2]
[339825564,1728045041132,-1490.0,0.00012141,2]
[339825565,1728045041142,-2524.0,0.00012169,2]
[339825566,1728045041151,-1490.0,0.00012169,2]
[339825567,1728045041161,-2524.0,0.00012196,2]
[339825568,1728045041170,-1490.0,0.00012196,2]
[339825569,1728045041179,-2524.0,0.00012224,2]
[339825570,1728045041188,-1490.0,0.00012224,2]
[339825571,1728045041197,-2524.0,0.00012251,2]
[339825572,1728045041206,-1490.0,0.00012251,2]
[339825573,1728045041215,-2524.0,0.00012278,2]
[339825574,1728045041224,-1490.0,0.00012278,2]
[339825575,1728045041233,-155.0,0.0001228,2]
[339825576,1728045041247,-1250.0,0.000123,2]
[339825577,1728045041257,-2524.0,0.00012306,2]
[339825578,1728045041266,-1490.0,0.00012306,2]
[339825579,1728045041275,-150.0,0.00012328,7]
[339825580,1728045041284,-151.0,0.00012329,2]
[339825581,1728045041293,-151.0,0.00012329,2]
[339825582,1728045041302,-151.0,0.00012329,2]
[339825583,1728045041311,-151.0,0.00012329,2]
[339825584,1728045041320,-151.0,0.00012329,2]